bitfinex-derivatives/quotes_ETHF0:USTF0_20250803
["timestamp","ask_amount","ask_price","bid_price","bid_amount"]
[1754239736500,1.4502,3487.2,3487.1,1.4792]
[1754239738705,1.7523,3487.2,3487.1,1.4792]
[1754239740104,1.7523,3487.2,3486.9,6.43486869]
[1754239740105,0.8691,3487.0,3486.9,23.2997]
[1754239740399,1.7523,3487.0,3486.9,24.336]
[1754239743401,3.2078,3487.7,3487.6,1.02]
[1754239743697,3.4818,3487.7,3487.6,4.70626869]
[1754239743907,1.1572,3487.7,3487.6,4.70626869]
[1754239744405,0.7673,3487.9,3487.8,0.2739]
[1754239744608,1.278,3488.1,3488.0,1.176]
[1754239744902,1.278,3488.1,3488.0,4.70626869]
[1754239745111,3.2078,3488.2,3488.1,2.05258]
[1754239745406,3.6167,3488.2,3488.1,21.69958]
[1754239746504,0.4089,3488.5,3488.4,2.05253]
[1754239746701,0.4089,3488.5,3488.4,24.92559869]
[1754239747104,3.8907,3489.0,3488.9,1.60955]
[1754239747411,0.4743,3489.3,3489.2,1.4792]
[1754239747412,1.0413,3489.3,3489.2,1.4792]
[1754239747801,1.7523,3489.3,3489.2,1.4792]
[1754239748702,0.8832,3489.4,3489.3,1.4792]
[1754239748897,1.1572,3489.4,3489.3,1.4792]
[1754239749102,1.7523,3489.4,3489.3,1.4792]
[1754239751014,2.1741,3489.4,3489.3,1.4792]
[1754239751605,1.44229,3489.3,3489.2,19.641]
[1754239751899,3.2078,3489.5,3488.8,19.64]
[1754239751900,0.567,3489.1,3488.8,19.64]
[1754239752102,1.7652,3488.9,3488.8,0.4429]
[1754239752305,1.7523,3488.9,3488.8,2.05247]
[1754239752510,0.6829,3488.9,3488.8,2.05247]
[1754239752912,0.4089,3488.9,3488.8,2.05247]
[1754239754316,0.6829,3488.9,3488.8,2.05247]
[1754239754516,0.6829,3488.9,3488.8,1.4792]
[1754239754716,1.1306,3488.9,3488.8,1.4792]
[1754239755915,1.3974,3488.9,3488.8,1.4792]
[1754239756417,1.7,3488.9,3488.8,1.4792]
[1754239756818,2.1234,3488.9,3488.8,20.657]
[1754239757413,1.7,3488.9,3488.8,21.1255]
[1754239758318,1.7,3488.9,3488.8,1.4885]
[1754239758517,1.7,3488.9,3488.8,21.1245]
[1754239758714,2.1234,3488.9,3488.8,21.1245]
[1754239759713,2.1234,3488.9,3488.8,21.1235]
[1754239762816,2.1234,3488.9,3488.5,3.78111]
[1754239763023,1.4063,3488.7,3488.6,20.3394]
[1754239763316,2.7209,3488.6,3488.3,0.4127]
[1754239763516,2.7209,3488.6,3488.4,1.0281]
[1754239763517,2.1476,3488.5,3488.4,1.0281]
[1754239764123,2.1476,3488.5,3488.4,1.4966]
[1754239764430,0.4387,3488.7,3488.6,1.4966]
[1754239764623,0.4477,3489.0,3488.7,0.57328]
[1754239764822,0.9829,3489.0,3488.9,1.4966]
[1754239765322,1.4216,3489.0,3488.9,1.4966]
[1754239765514,0.9739,3489.0,3488.9,4.72366869]
[1754239765714,1.14259,3489.3,3489.2,0.6154]
[1754239765917,1.41099,3489.3,3489.2,1.4966]
[1754239766118,1.83439,3489.3,3489.2,1.4966]
[1754239766319,2.27309,3489.3,3489.2,1.4966]
[1754239766622,2.72079,3489.3,3489.2,1.4966]
[1754239766915,1.7242,3489.3,3489.2,1.4966]
[1754239767118,1.7242,3489.3,3489.2,4.72366869]
[1754239768211,0.7071,3489.3,3489.2,4.72366869]
[1754239768416,0.4387,3489.5,3489.4,0.6154]
[1754239768612,0.4387,3489.5,3489.4,1.4966]
[1754239769225,0.7071,3489.5,3489.4,1.4966]
[1754239769626,0.4477,3489.8,3489.5,0.57315]
[1754239769921,3.2078,3489.9,3489.8,1.4966]
[1754239769922,3.9149,3489.9,3489.8,1.4966]
[1754239770126,3.2078,3489.9,3489.8,1.4966]
[1754239770323,1.4387,3490.0,3489.9,1.4966]
[1754239770519,1.0,3490.0,3489.9,1.4966]
[1754239771325,1.1289,3490.8,3490.7,0.2937]
[1754239771627,2.1476,3490.8,3490.7,0.2937]
[1754239772126,2.72054,3490.8,3490.7,0.2937]
[1754239772322,2.72054,3490.8,3490.7,1.0281]
[1754239772516,1.2765,3490.8,3490.7,1.4966]
[1754239772721,2.1476,3490.7,3490.6,0.2937]
[1754239772921,2.1476,3490.7,3490.6,1.4966]
[1754239773123,2.1476,3490.7,3490.6,0.6154]
[1754239773322,2.72056,3490.7,3490.4,19.63]
[1754239773523,1.10819,3490.5,3490.4,20.7139]
[1754239773716,2.72059,3490.5,3490.4,1.4966]
[1754239773920,0.8378,3490.0,3489.9,0.6154]
[1754239774120,2.1476,3490.0,3489.9,20.7119]
[1754239774521,2.1476,3490.0,3489.9,21.1246]
[1754239774823,1.2765,3490.0,3489.9,21.1246]
[1754239775029,1.2765,3490.0,3489.7,3.2078]
[1754239775030,0.8378,3489.8,3489.7,3.2078]
[1754239775225,1.41092,3489.7,3489.6,1.4966]
[1754239775421,1.4574,3489.7,3489.6,24.35166869]
[1754239775721,0.4387,3489.9,3489.8,1.4966]
[1754239775929,0.7071,3489.9,3489.8,1.4966]
[1754239776123,0.9739,3489.9,3489.8,1.4966]
[1754239776320,0.7071,3489.9,3489.8,1.4966]
[1754239776524,0.7071,3490.2,3490.1,1.4966]
[1754239776722,1.28013,3490.3,3490.2,0.8812]
[1754239776927,1.54693,3490.3,3490.2,1.4966]
[1754239777129,2.72063,3490.3,3490.2,1.4966]
[1754239778630,0.84141,3490.4,3490.3,0.4685]
[1754239778831,1.41081,3490.4,3490.3,1.4966]
[1754239779032,2.28191,3490.4,3490.3,1.4966]
[1754239779228,2.72061,3490.4,3490.3,1.4966]
[1754239780134,2.1476,3490.4,3490.3,1.4966]
[1754239780334,0.7071,3490.4,3490.3,1.4966]
[1754239781235,0.9739,3490.4,3490.3,1.4966]
[1754239781431,1.2765,3490.4,3490.3,1.4966]
[1754239781637,2.1476,3490.4,3490.3,1.4966]
[1754239782137,2.1476,3490.9,3490.8,0.2937]
[1754239782436,1.41076,3490.7,3490.6,1.4966]
[1754239782634,2.72056,3490.7,3490.6,1.4966]
[1754239784338,2.1817,3490.7,3490.6,0.6154]
[1754239784538,2.1817,3490.7,3490.6,1.057]
[1754239784930,2.1817,3490.7,3490.6,1.5206]
[1754239786743,1.00495,3490.8,3490.7,1.4917]
[1754239786942,1.27475,3490.8,3490.7,1.4917]
[1754239787147,1.56375,3490.8,3490.7,1.4917]
[1754239787344,1.2926,3490.8,3490.7,1.4917]
[1754239787538,0.7018,3490.9,3490.8,1.4917]
[1754239787743,0.9908,3490.9,3490.8,4.71876869]
[1754239787941,0.57294,3490.8,3490.6,20.5432]
[1754239788139,4.63994,3491.4,3490.5,0.2854]
[1754239788140,0.86197,3490.6,3490.5,0.2854]
[1754239788347,1.86557,3490.6,3490.5,0.5865]
[1754239788644,1.2926,3490.6,3490.5,1.4917]
[1754239788844,2.1817,3490.6,3490.5,21.1457]
[1754239789041,0.8606,3490.3,3490.2,0.5865]
[1754239789243,2.32272,3490.3,3490.2,21.1447]
[1754239789640,2.75472,3490.3,3490.2,21.1447]
[1754239790244,2.1817,3490.3,3490.2,21.1447]
[1754239790751,1.2926,3490.3,3490.2,21.1447]
[1754239790956,2.1817,3490.3,3490.2,21.1447]
[1754239791547,1.2926,3490.3,3490.2,21.1447]
[1754239792343,0.7018,3490.3,3490.2,21.1447]
[1754239792548,0.432,3490.3,3490.2,21.1447]
[1754239792751,0.8891,3490.6,3490.5,0.2854]
[1754239792752,1.7497,3490.6,3490.5,0.2854]
[1754239792952,1.7497,3490.6,3490.5,24.37076869]
[1754239793447,2.1817,3490.6,3490.5,24.37076869]
[1754239793947,2.1817,3490.6,3490.5,19.652]
[1754239794153,0.9908,3490.4,3490.3,0.2854]
[1754239794350,1.2926,3490.4,3490.3,19.9374]
[1754239794553,1.2926,3490.4,3490.3,0.2854]
[1754239794847,2.75474,3490.2,3490.1,3.2078]
[1754239795242,1.43369,3489.9,3489.8,1.0281]
[1754239795453,1.43369,3489.9,3489.8,20.2355]
[1754239795655,0.8606,3489.9,3489.8,1.4917]
[1754239795856,2.7548,3489.8,3489.7,3.2078]
[1754239796450,1.4337,3489.8,3489.6,22.87806869]
[1754239796657,2.1817,3489.7,3489.6,24.36976869]
[1754239799156,0.8606,3489.5,3489.3,3.6714]
[1754239799354,2.1817,3489.4,3489.3,4.6995]
[1754239799550,2.1817,3489.4,3489.3,27.57056869]
[1754239800355,2.1817,3489.4,3489.3,7.02136869]
[1754239800560,0.8606,3489.2,3489.1,0.5865]
[1754239800761,2.1817,3489.2,3489.1,1.0501]
[1754239801063,0.8606,3489.1,3489.0,26.04312089]
[1754239801257,0.57321,3489.2,3489.0,24.36576869]
[1754239801462,1.3211,3489.7,3489.1,0.9052]
[1754239801758,0.432,3489.7,3489.5,0.9052]
[1754239802059,3.2078,3489.8,3489.7,1.4917]
[1754239802258,3.2078,3490.6,3489.8,0.5731]
[1754239802566,2.1817,3490.5,3490.4,0.5865]
[1754239802962,2.1817,3490.5,3490.4,1.4917]
[1754239803170,3.53813295,3490.5,3490.4,1.4917]
[1754239803359,2.7547,3490.5,3490.4,1.4917]
[1754239803860,1.2748,3490.5,3490.4,1.4917]
[1754239804062,1.8656,3490.5,3490.4,4.71876869]
[1754239804267,3.53810866,3490.5,3490.4,1.4917]
[1754239804467,3.53810866,3490.5,3490.2,19.686]
[1754239804468,1.4336,3490.5,3490.2,19.686]
[1754239804766,2.75472,3490.3,3490.2,20.2725]
[1754239804962,2.75472,3490.3,3490.2,20.7361]
[1754239805168,2.1817,3490.3,3490.2,21.1777]
[1754239806961,3.2078,3491.0,3490.2,21.1777]
[1754239806962,0.432,3490.9,3490.6,0.5865]
[1754239807165,0.2698,3490.9,3490.8,4.71876869]
[1754239807460,0.84269,3491.1,3490.8,4.71876869]
[1754239807662,0.2698,3491.1,3491.0,0.5865]
[1754239807862,3.2078,3491.5,3491.1,1.4917]
[1754239808063,4.64122,3491.5,3491.4,4.71876869]
[1754239808269,3.2078,3492.0,3491.4,4.71876869]
[1754239808567,3.78054,3492.0,3491.9,1.4917]
[1754239808961,5.96224,3492.0,3491.9,1.4917]
[1754239809158,1.43168,3492.5,3491.9,1.4917]
[1754239809159,3.2078,3492.5,3491.9,2.06446]
[1754239809361,5.07306,3492.5,3492.4,4.71876869]
[1754239809971,5.96216,3492.5,3492.4,4.71876869]
[1754239810170,3.2078,3492.9,3492.4,4.71876869]
[1754239810373,1.43321,3492.8,3492.7,0.2854]
[1754239810669,1.16349,3492.3,3492.2,1.0501]
[1754239810970,2.75439,3492.3,3492.2,21.2527]
[1754239811168,2.1817,3492.0,3491.9,4.6995]
[1754239811467,0.9908,3492.1,3492.0,1.4917]
[1754239811667,1.43339,3491.8,3491.7,0.5865]
[1754239811966,2.75449,3491.8,3491.7,0.5865]
[1754239812572,2.75449,3491.8,3491.7,1.4917]
[1754239812865,1.27459,3491.8,3491.7,1.4917]
[1754239813471,1.86539,3491.8,3491.7,1.4917]
[1754239813668,2.75009,3491.8,3491.7,1.4917]
[1754239814371,2.75009,3491.8,3491.7,0.5865]
[1754239815070,2.75009,3491.8,3491.7,1.458]
[1754239817066,2.75009,3491.8,3491.7,0.5865]
[1754239817468,2.75009,3491.8,3491.7,1.0012]
[1754239817666,2.75009,3491.8,3491.7,1.458]
[1754239817870,2.1773,3491.8,3491.7,1.458]
[1754239821867,2.1773,3491.8,3491.6,19.744]
[1754239822075,2.77679,3491.7,3491.4,4.0793]
[1754239822275,2.204,3491.6,3491.5,20.3322]
[1754239822571,0.8883,3491.6,3491.5,0.5922]
[1754239822778,0.8883,3491.6,3491.5,1.4637]
[1754239822779,1.3751,3491.6,3491.5,1.4637]
[1754239823272,2.204,3491.6,3491.5,1.4637]
[1754239824779,0.8883,3491.8,3491.7,1.4637]
[1754239825276,1.3193,3491.8,3491.7,1.4637]
[1754239825675,1.7172,3491.8,3491.7,1.4637]
[1754239827077,2.204,3491.8,3491.7,1.4637]
[1754239828878,0.8883,3491.5,3491.4,3.2078]
[1754239829080,2.77682,3491.5,3491.4,3.2078]
[1754239829780,2.77682,3491.5,3491.4,4.6715]
[1754239829975,1.3193,3491.5,3491.4,4.6715]
[1754239830473,3.2078,3492.2,3491.4,3.8]
[1754239830674,0.8883,3492.3,3492.2,0.7676]
[1754239830980,2.204,3492.3,3492.2,21.1897]
[1754239831477,2.204,3492.3,3492.2,21.76241]
[1754239831676,1.3193,3492.3,3492.2,21.76241]
[1754239831877,0.431,3492.3,3492.2,21.76241]
[1754239832069,4.78039,3493.0,3492.2,21.76241]
[1754239832070,0.8289,3492.9,3492.5,0.57266]
[1754239832274,0.8289,3492.9,3492.1,8.56459991]
[1754239832275,2.204,3492.9,3492.8,1.4637]
[1754239833385,2.204,3492.9,3492.8,21.2507]
[1754239834781,2.204,3492.6,3492.5,22.9908]
[1754239835180,2.204,3492.6,3492.5,23.583]
[1754239835376,1.1749,3492.8,3492.7,0.2814]
[1754239835684,0.8883,3492.8,3492.7,1.4637]
[1754239836080,1.3193,3492.8,3492.7,1.4637]
[1754239836277,1.0,3493.0,3492.9,1.4637]
[1754239836477,1.0,3493.0,3492.5,22.9908]
[1754239836478,1.773,3492.6,3492.5,3.2078]
[1754239836881,2.204,3492.6,3492.5,3.2078]
[1754239837588,2.204,3491.8,3491.7,0.5922]
[1754239837780,2.204,3491.8,3491.7,20.838]
[1754239837977,2.204,3491.8,3491.7,21.2527]
[1754239838578,2.204,3491.8,3491.7,20.3932]
[1754239838784,1.89214,3491.5,3491.2,3.2078]
[1754239838990,2.204,3491.4,3491.3,20.3902]
[1754239839190,1.3193,3491.4,3491.3,21.5487]
[1754239839391,1.3193,3491.4,3491.3,21.8766]
[1754239840090,2.204,3491.4,3491.3,21.8766]
[1754239840490,2.204,3492.2,3492.1,2.0786]
[1754239840888,0.8883,3492.0,3491.9,19.803]
[1754239841189,2.204,3492.0,3491.9,19.803]
[1754239841385,2.204,3492.0,3491.9,20.0844]
[1754239841588,2.204,3492.0,3491.9,20.3952]
[1754239842090,2.204,3492.0,3491.9,21.2667]
[1754239842486,2.204,3492.0,3491.9,21.5537]
[1754239843490,2.204,3492.3,3492.2,0.8792]
[1754239843679,2.204,3492.3,3492.2,2.0786]
[1754239844190,2.204,3492.3,3492.2,2.0702]
[1754239844386,0.7182,3492.3,3492.2,2.0702]
[1754239844590,1.0043,3492.3,3492.2,21.8752]
[1754239844791,1.3133,3492.3,3492.2,21.8752]
[1754239845386,0.5951,3492.3,3492.2,21.8752]
[1754239845591,2.1703,3492.3,3492.2,19.805]
[1754239845894,0.8548,3492.3,3492.1,3.2078]
[1754239846083,0.57269,3492.4,3492.1,3.2078]
[1754239846084,2.1703,3492.2,3492.1,3.2078]
[1754239846386,2.1703,3492.2,3492.1,3.4674]
[1754239846587,2.1703,3492.2,3492.1,3.2078]
[1754239846788,0.8548,3492.2,3492.0,19.811]
[1754239847097,2.1703,3492.1,3492.0,19.811]
[1754239847392,2.1703,3492.1,3492.0,21.842]
[1754239847689,1.2681,3492.2,3492.1,1.7115]
[1754239847987,2.1703,3492.2,3492.1,1.7115]
[1754239848287,2.1703,3492.2,3492.1,0.5722]
[1754239848692,2.1703,3491.9,3491.8,1.427]
[1754239848895,2.1703,3491.9,3491.8,21.233]
[1754239849093,2.1703,3491.9,3491.8,21.5175]
[1754239849397,2.1703,3491.9,3491.8,21.837]
[1754239850489,1.2681,3491.9,3491.8,21.837]
[1754239852094,1.757,3492.2,3492.1,0.8567]
[1754239852390,0.5458,3492.2,3492.1,2.031]
[1754239852590,0.57267,3492.5,3492.1,1.74892]
[1754239852790,1.42747,3492.5,3492.4,0.8567]
[1754239853096,0.8548,3492.5,3492.4,2.031]
[1754239853492,2.1703,3492.5,3492.4,2.031]
[1754239855299,1.2681,3492.5,3492.4,2.031]
[1754239855498,2.1703,3492.5,3492.4,2.031]
[1754239857600,1.4973,3492.5,3492.4,2.031]
[1754239857801,1.757,3492.5,3492.4,2.031]
[1754239858001,2.1703,3492.5,3492.4,2.031]
[1754239858208,2.1703,3492.9,3492.8,2.031]
[1754239858894,1.42746,3492.6,3492.3,3.2078]
[1754239859100,0.8548,3492.6,3492.5,0.5722]
[1754239859305,0.8548,3492.6,3492.5,2.031]
[1754239859498,2.1703,3492.6,3492.5,2.031]
[1754239860404,1.8548,3493.0,3492.9,0.5722]
[1754239860701,3.1703,3493.0,3492.9,1.7115]
[1754239860902,2.2681,3493.0,3492.9,2.031]
[1754239861100,1.0,3493.0,3492.9,7.38779991]
[1754239862401,0.18538269,3493.5,3493.4,2.60351]
[1754239862809,2.35568269,3493.5,3493.4,1.1144]
[1754239863100,0.8326,3494.2,3493.5,0.4003]
[1754239863305,0.9022,3493.5,3493.2,3.2078]
[1754239863493,0.57259,3493.0,3492.6,5.7903522]
[1754239863700,1.4312,3493.7,3492.6,3.2078]
[1754239863701,2.1703,3492.7,3492.6,3.2078]
[1754239864206,2.1703,3492.7,3492.6,4.6348]
[1754239864400,2.1703,3492.7,3492.6,4.9193]
[1754239864607,1.757,3493.0,3492.9,0.8567]
[1754239864803,1.757,3493.0,3492.9,2.031]
[1754239865306,2.1703,3493.4,3493.3,0.5722]
[1754239866704,2.1703,3493.2,3493.1,0.5722]
[1754239867302,2.1703,3493.2,3493.1,1.7115]
[1754239868700,2.1703,3493.2,3493.1,1.427]
[1754239869304,2.1703,3493.2,3493.1,1.0267]
[1754239869496,2.1703,3493.2,3493.1,0.5722]
[1754239870707,2.1703,3493.2,3493.1,0.3126]
[1754239871004,2.1703,3492.7,3492.6,24.4698]
[1754239871402,2.1703,3492.7,3492.6,4.9193]
[1754239871705,2.1703,3492.7,3492.6,5.2388]
[1754239871905,2.1703,3492.7,3492.6,4.9193]
[1754239874603,2.1703,3492.7,3492.6,5.2403]
[1754239876206,0.2716,3492.8,3492.7,1.4746]
[1754239876406,0.2716,3492.8,3492.7,2.61643]
[1754239876407,2.1377,3492.8,3492.7,2.61643]
[1754239876712,2.1377,3492.8,3492.7,1.4467]
[1754239877108,2.1377,3492.8,3492.7,1.7228]
[1754239877410,2.1377,3492.8,3492.7,2.0438]
[1754239878112,1.2774,3492.8,3492.7,2.0438]
[1754239878318,2.1377,3493.1,3493.0,2.0438]
[1754239879012,2.1377,3493.1,3493.0,1.7228]
[1754239879207,2.1377,3493.1,3493.0,0.5692]
[1754239879513,0.8494,3492.7,3492.6,4.0531]
[1754239879714,2.1377,3492.7,3492.6,25.0676]
[1754239881014,2.1377,3492.7,3492.6,25.0636]
[1754239881613,2.1377,3492.7,3492.6,5.2516]
[1754239881614,0.5778,3492.7,3492.6,5.2516]
[1754239881812,1.8661,3492.7,3492.6,25.0636]
[1754239882010,2.1377,3492.7,3492.6,25.0606]
[1754239882210,1.2774,3492.7,3492.6,25.0596]
[1754239882510,1.7097,3493.0,3492.9,2.0438]
[1754239882912,2.1377,3493.0,3492.9,2.0438]
[1754239883218,2.1377,3493.0,3492.9,1.7228]
[1754239883514,1.7097,3493.1,3493.0,2.0438]
[1754239883815,1.7097,3493.1,3493.0,1.7228]
[1754239884010,2.1377,3493.1,3493.0,1.7228]
[1754239884810,0.8494,3493.0,3492.9,0.8453]
[1754239885007,2.1377,3493.0,3492.9,1.7228]
[1754239885517,2.1377,3493.0,3492.9,0.262]
[1754239885821,1.7097,3493.2,3493.1,0.8453]
[1754239886023,2.1377,3493.2,3493.1,2.0378]
[1754239886617,2.1377,3493.2,3493.1,5.24948456]
[1754239886817,0.7139,3493.3,3493.2,2.0378]
[1754239887119,1.1319,3493.6,3493.5,0.2761]
[1754239887324,2.1377,3493.6,3493.5,4.45758456]
[1754239887523,2.1377,3493.6,3493.5,4.93448456]
[1754239888317,2.1377,3493.6,3493.5,1.7228]
[1754239888623,2.1377,3493.2,3493.1,3.47368456]
[1754239888817,2.1377,3493.2,3493.1,0.5692]
[1754239889118,2.1377,3493.2,3493.1,0.262]
[1754239889419,2.1377,3493.0,3492.9,23.00968456]
[1754239889721,2.1377,3493.0,3492.9,3.21168456]
[1754239890323,2.1377,3493.0,3492.9,3.47368456]
[1754239890822,2.1377,3493.0,3492.9,5.24948456]
[1754239891325,2.1377,3493.0,3492.9,4.93448456]
[1754239892124,1.4381,3493.0,3492.9,4.65838456]
[1754239892426,0.57256,3493.1,3493.0,2.0378]
[1754239892427,1.10456,3493.1,3493.0,2.0378]
[1754239892619,1.53256,3493.1,3493.0,2.0378]
[1754239892821,0.96,3493.1,3493.0,2.0378]
[1754239893018,1.2774,3493.1,3493.0,5.24948456]
[1754239893218,2.1377,3493.1,3493.0,5.24948456]
[1754239893418,2.1377,3493.1,3493.0,1.7228]
[1754239893623,2.1377,3493.1,3493.0,3.78088456]
[1754239894628,2.1377,3493.1,3493.0,4.65838456]
[1754239894824,2.1377,3493.1,3493.0,4.93448456]
[1754239895313,2.1377,3493.1,3493.0,3.78088456]
[1754239895520,3.2078,3493.5,3492.5,3.2078]
[1754239895521,0.532,3492.6,3492.5,3.2078]
[1754239895819,0.532,3492.6,3492.0,0.8775]
[1754239895820,2.1377,3492.3,3492.2,5.79423676]
[1754239896020,2.1377,3492.3,3492.2,5.24948456]
[1754239896226,2.1377,3492.3,3492.2,2.0378]
[1754239896415,2.1377,3492.3,3492.2,5.24948456]
[1754239897023,3.2078,3492.8,3492.2,3.21168456]
[1754239897325,2.1377,3492.7,3492.6,4.93448456]
[1754239897525,2.1377,3492.7,3492.6,5.24948456]
[1754239897725,2.1377,3492.7,3492.6,2.0378]
[1754239898225,1.2774,3492.7,3492.6,2.0378]
[1754239898423,0.96,3492.7,3492.6,2.0378]
[1754239898823,2.1377,3493.0,3492.9,0.8453]
[1754239899019,1.2774,3493.0,3492.9,2.0378]
[1754239899221,0.96,3493.1,3493.0,2.61038]
[1754239899421,0.96,3493.1,3493.0,2.0378]
[1754239899620,0.428,3493.5,3493.4,0.262]
[1754239899820,2.1377,3493.5,3493.4,2.0378]
[1754239900823,1.2774,3493.5,3493.4,2.0378]
[1754239901123,0.5778,3493.5,3493.4,2.0378]
[1754239901334,2.1377,3493.5,3493.4,2.0378]
[1754239903322,0.428,3493.7,3493.4,1.6372]
[1754239903520,0.8494,3493.7,3493.6,0.8453]
[1754239903726,1.705,3493.7,3493.6,2.0003]
[1754239904124,0.9419,3493.7,3493.6,2.0003]
[1754239904529,2.1017,3493.7,3493.6,2.0003]
[1754239904727,2.1017,3493.7,3493.6,1.6942]
[1754239905431,2.1017,3493.7,3493.6,2.57278]
[1754239905632,2.1017,3493.7,3493.6,2.0003]
[1754239907028,0.57242,3494.0,3493.6,1.1514]
[1754239907230,3.2078,3494.1,3494.0,1.9988]
[1754239907231,4.4686,3494.1,3494.0,1.9988]
[1754239907529,2.1164,3494.1,3494.0,0.7613]
[1754239907733,2.1164,3493.9,3493.8,1.4188]
[1754239908832,2.1164,3493.9,3493.8,0.5699]
[1754239909443,2.1164,3493.9,3493.8,1.4188]
[1754239909834,2.1164,3493.9,3493.8,0.5699]
[1754239910340,2.1164,3493.8,3493.7,3.7777]
[1754239910631,2.1164,3493.8,3493.7,4.6266]
[1754239910850,0.8509,3493.6,3493.5,1.14239]
[1754239911048,2.1164,3493.6,3493.5,1.14239]
[1754239911245,2.1164,3493.6,3493.5,1.4188]
[1754239911443,2.1164,3493.6,3493.5,0.5699]
[1754239912042,2.1164,3493.6,3493.5,1.4188]
[1754239912243,2.1164,3493.6,3493.5,1.6927]
[1754239912539,0.4099,3493.9,3493.7,0.4566]
[1754239912739,0.4099,3493.9,3493.8,1.1499]
[1754239912944,0.4099,3494.1,3494.0,0.6108]
[1754239913144,3.2078,3494.2,3494.1,2.2651]
[1754239913344,0.4099,3494.2,3494.1,2.5712]
[1754239913548,1.2608,3494.2,3494.1,2.5712]
[1754239913848,2.1164,3494.2,3494.1,1.9988]
[1754239914045,0.4099,3494.4,3494.1,1.9988]
[1754239914350,2.1164,3494.2,3494.1,1.9988]
[1754239915037,0.5724,3494.1,3493.6,4.0567]
[1754239915239,2.1164,3493.7,3493.6,3.2078]
[1754239915441,1.42337,3493.7,3493.4,0.8489]
[1754239915636,2.1164,3493.5,3493.4,1.0265]
[1754239915845,2.1164,3493.5,3493.4,1.6927]
[1754239916044,2.1164,3493.5,3493.2,4.08644]
[1754239916045,1.42341,3493.5,3493.2,3.2078]
[1754239916238,0.5797,3493.4,3493.3,0.9622]
[1754239916442,0.8509,3493.4,3493.3,1.4188]
[1754239916746,0.8509,3493.4,3493.3,1.6927]
[1754239916952,1.2608,3493.4,3493.3,1.9988]
[1754239917145,1.2608,3493.8,3493.7,0.2739]
[1754239917347,2.1164,3493.8,3493.7,0.2652]
[1754239918249,3.78023,3493.9,3493.5,1.4188]
[1754239918250,0.8509,3493.6,3493.5,1.4188]
[1754239918449,2.1164,3493.6,3493.5,1.4188]
[1754239918650,2.1164,3493.6,3493.5,0.5699]
[1754239919363,2.1164,3493.6,3493.5,1.0265]
[1754239919655,2.1164,3493.6,3493.5,1.4188]
[1754239919858,2.1164,3493.6,3493.5,1.6927]
[1754239920057,2.1164,3493.6,3493.5,1.9988]
[1754239921048,0.8509,3493.4,3493.3,0.57252]
[1754239921249,2.1164,3493.4,3493.3,0.57252]
[1754239921457,2.1164,3493.4,3493.3,1.41632]
[1754239921750,2.1164,3493.4,3493.3,1.6927]
[1754239922460,2.1164,3493.4,3493.3,1.9988]
[1754239922855,2.1164,3493.7,3493.6,1.9988]
[1754239924254,0.57242,3494.0,3493.6,5.77908]
[1754239924455,2.1164,3493.8,3493.7,1.9988]
[1754239924656,1.238,3493.3,3493.2,3.2078]
[1754239924854,2.1164,3492.9,3492.8,3.2078]
[1754239925056,2.1164,3492.9,3492.8,3.7777]
[1754239925256,0.8509,3493.3,3493.2,0.8438]
[1754239925652,0.8509,3493.3,3493.2,1.9988]
[1754239925858,0.8509,3493.1,3493.0,3.21164753]
[1754239926052,2.1164,3493.1,3493.0,3.78154753]
[1754239926358,2.1164,3493.1,3493.0,4.63044753]
[1754239926555,2.1164,3493.1,3493.0,4.90434753]
[1754239926750,2.1164,3493.1,3492.8,3.2078]
[1754239926959,2.1164,3492.9,3492.8,3.2078]
[1754239927252,2.1164,3492.9,3492.8,3.473]
[1754239927460,2.1164,3492.9,3492.8,3.2078]
[1754239927958,2.1164,3492.9,3492.8,3.473]
[1754239928158,2.1164,3492.9,3492.8,3.7777]
[1754239928360,2.1164,3492.9,3492.8,4.6266]
[1754239929564,2.1164,3492.9,3492.8,3.2078]
[1754239929767,2.1164,3492.9,3492.8,3.473]
[1754239929968,2.1164,3492.9,3492.8,3.7777]
[1754239930165,2.1164,3492.9,3492.8,5.2066]
[1754239930867,2.1164,3492.9,3492.8,4.9005]
[1754239931361,2.1164,3492.9,3492.8,3.7777]
[1754239931558,2.1164,3492.9,3492.8,3.473]
[1754239931758,2.1164,3492.9,3492.8,3.7777]
[1754239931959,2.1164,3492.9,3492.8,4.6266]
[1754239932159,2.1164,3492.9,3492.8,5.2066]
[1754239933775,12.1164,3492.9,3492.8,5.2066]
[1754239934267,10.0,3492.9,3492.8,5.2066]
[1754239934461,10.4006,3492.9,3492.8,5.2066]
[1754239935267,10.6622,3492.9,3492.8,5.2066]
[1754239935472,10.9235,3492.9,3492.8,5.2066]
[1754239935766,11.2242,3492.9,3492.8,5.2066]
[1754239935966,1.2285,3492.8,3492.4,3.2078]
[1754239936170,0.8236,3492.2,3492.1,1.4341]
[1754239936367,10.0,3492.9,3492.5,0.2721]
[1754239936368,2.0521,3492.6,3492.5,0.2721]
[1754239936667,2.0521,3492.6,3492.5,1.4341]
[1754239936971,0.57261,3492.8,3492.5,1.9783]
[1754239937270,10.0,3492.9,3492.8,1.5183]
[1754239937462,11.2242,3492.9,3492.8,1.9783]